[Event "Live Chess"]
[Site "Chess.com"]
[Date "2024.06.01"]
[Round "-"]
[White "JanMur7"]
[Black "f4nomore"]
[Result "1-0"]
[WhiteElo "2313"]
[BlackElo "1201"]
[TimeControl "300"]
[EndTime "12:50:17 PDT"]
[Termination "JanMur7 won on time"]

1. e4 {[%clk 0:04:56.4]} 1... g6 {[%clk 0:04:59.5]} 2. h4 {[%clk 0:04:53.8]}
2... h5 {[%clk 0:04:57.4]} 3. d4 {[%clk 0:04:51.4]} 3... d6 {[%clk 0:04:55.9]}
4. Nf3 {[%clk 0:04:49.5]} 4... Bg7 {[%clk 0:04:53.8]} 5. Be2 {[%clk 0:04:48.5]}
5... Nc6 {[%clk 0:04:49.8]} 6. O-O {[%clk 0:04:46.4]} 6... Bg4 {[%clk
0:04:40.9]} 7. d5 {[%clk 0:04:44.2]} 7... Bxf3 {[%clk 0:04:37.9]} 8. Bxf3 {[%clk
0:04:42.3]} 8... Ne5 {[%clk 0:04:34.7]} 9. Be2 {[%clk 0:04:40.7]} 9... Nf6
{[%clk 0:04:32]} 10. f3 {[%clk 0:04:33.6]} 10... O-O {[%clk 0:04:29.8]} 11. Be3
{[%clk 0:04:31.7]} 11... c6 {[%clk 0:04:28.7]} 12. c4 {[%clk 0:04:29.8]} 12...
cxd5 {[%clk 0:04:24.7]} 13. cxd5 {[%clk 0:04:29.7]} 13... Rc8 {[%clk 0:04:22.3]}
14. Nc3 {[%clk 0:04:28]} 14... a6 {[%clk 0:04:17.7]} 15. a4 {[%clk 0:04:20.1]}
15... Nc4 {[%clk 0:04:14.8]} 16. Bxc4 {[%clk 0:04:17.7]} 16... Rxc4 {[%clk
0:04:11.9]} 17. Qb3 {[%clk 0:04:16.7]} 17... Qc8 {[%clk 0:04:07.8]} 18. Rfc1
{[%clk 0:04:11.8]} 18... Nd7 {[%clk 0:04:04.9]} 19. Ne2 {[%clk 0:04:10.4]} 19...
Rxc1+ {[%clk 0:03:54]} 20. Rxc1 {[%clk 0:04:10.3]} 20... Qb8 {[%clk 0:03:51.6]}
21. Bb6 {[%clk 0:04:01.3]} 21... Nxb6 {[%clk 0:03:44.5]} 22. Qxb6 {[%clk
0:04:01.2]} 22... Rc8 {[%clk 0:03:39.3]} 23. Re1 {[%clk 0:03:30.7]} 23... Kh7
{[%clk 0:03:12.8]} 24. Qb3 {[%clk 0:03:21.7]} 24... Rc5 {[%clk 0:03:07.4]} 25.
Rc1 {[%clk 0:03:12.3]} 25... Rxc1+ {[%clk 0:03:03.4]} 26. Nxc1 {[%clk
0:03:12.2]} 26... b5 {[%clk 0:03:00.8]} 27. Nd3 {[%clk 0:03:05.1]} 27... Qb6+
{[%clk 0:02:55.3]} 28. Kf1 {[%clk 0:03:02.2]} 28... Qe3 {[%clk 0:02:44.7]} 29.
axb5 {[%clk 0:02:54.7]} 29... axb5 {[%clk 0:02:41.1]} 30. Qc2 {[%clk 0:02:28.8]}
30... Qd4 {[%clk 0:02:28.9]} 31. b3 {[%clk 0:02:19.5]} 31... Qa1+ {[%clk
0:02:20.9]} 32. Kf2 {[%clk 0:02:10.9]} 32... Bd4+ {[%clk 0:02:15.4]} 33. Kg3
{[%clk 0:02:08.7]} 33... Qh1 {[%clk 0:02:00.2]} 34. Qc1 {[%clk 0:01:36.3]} 34...
Be5+ {[%clk 0:01:32]} 35. f4 {[%clk 0:01:29.1]} 35... Bxf4+ {[%clk 0:01:27.4]}
36. Qxf4 {[%clk 0:01:25.7]} 36... Qb1 {[%clk 0:01:19.1]} 37. Qxf7+ {[%clk
0:01:23.6]} 37... Kh6 {[%clk 0:01:16.6]} 38. Qf8+ {[%clk 0:01:22.5]} 38... Kh7
{[%clk 0:01:13.4]} 39. Qxe7+ {[%clk 0:01:21.3]} 39... Kh6 {[%clk 0:01:11.8]} 40.
Qf8+ {[%clk 0:01:17.5]} 40... Kh7 {[%clk 0:01:09.7]} 41. Qf7+ {[%clk 0:01:17.2]}
41... Kh6 {[%clk 0:01:08.3]} 42. Qf4+ {[%clk 0:01:10.8]} 42... Kh7 {[%clk
0:01:05.5]} 43. Qf3 {[%clk 0:01:05.9]} 43... Qxb3 {[%clk 0:01:03]} 44. e5 {[%clk
0:01:04.5]} 44... Qa3 {[%clk 0:00:20.1]} 45. e6 {[%clk 0:01:00.6]} 45... Qa7
{[%clk 0:00:13.2]} 46. Qf7+ {[%clk 0:00:52.5]} 46... Qxf7 {[%clk 0:00:10.5]} 47.
exf7 {[%clk 0:00:52.4]} 47... Kg7 {[%clk 0:00:09.7]} 48. Kf4 {[%clk 0:00:51.6]}
48... Kxf7 {[%clk 0:00:08.4]} 49. Kg5 {[%clk 0:00:50.7]} 1-0

[Event "Live Chess"]
[Site "Chess.com"]
[Date "2024.06.01"]
[Round "-"]
[White "alicechristina"]
[Black "chessfiction"]
[Result "1/2-1/2"]
[WhiteElo "1805"]
[BlackElo "2395"]
[TimeControl "300"]
[EndTime "12:50:31 PDT"]
[Termination "Game drawn - insufficient material"]

1. e4 {[%clk 0:04:56.1]} 1... c5 {[%clk 0:04:53.5]} 2. Nf3 {[%clk 0:04:54.1]}
2... d6 {[%clk 0:04:50.1]} 3. d4 {[%clk 0:04:53.2]} 3... cxd4 {[%clk 0:04:50]}
4. Nxd4 {[%clk 0:04:49.9]} 4... Nf6 {[%clk 0:04:49.1]} 5. Nc3 {[%clk 0:04:47.6]}
5... a6 {[%clk 0:04:40.3]} 6. Bg5 {[%clk 0:04:44]} 6... e6 {[%clk 0:04:38]} 7.
f4 {[%clk 0:04:37.5]} 7... Be7 {[%clk 0:04:35.6]} 8. Qf3 {[%clk 0:04:35.3]} 8...
Qc7 {[%clk 0:04:31.9]} 9. O-O-O {[%clk 0:04:26.9]} 9... Nc6 {[%clk 0:04:22.8]}
10. g4 {[%clk 0:04:12.5]} 10... Bd7 {[%clk 0:04:19.9]} 11. Nxc6 {[%clk
0:04:06.3]} 11... Bxc6 {[%clk 0:04:18.5]} 12. Bxf6 {[%clk 0:04:01.3]} 12... gxf6
{[%clk 0:03:51.5]} 13. Kb1 {[%clk 0:03:51.8]} 13... O-O-O {[%clk 0:03:48.7]} 14.
Bg2 {[%clk 0:03:42.5]} 14... Rhg8 {[%clk 0:03:42.9]} 15. h3 {[%clk 0:03:40]}
15... f5 {[%clk 0:03:39.7]} 16. gxf5 {[%clk 0:03:37]} 16... exf5 {[%clk
0:03:37.9]} 17. Qf2 {[%clk 0:03:33]} 17... fxe4 {[%clk 0:03:31.5]} 18. Nxe4
{[%clk 0:03:26.1]} 18... Rxg2 {[%clk 0:03:27.2]} 19. Qxg2 {[%clk 0:03:22.9]}
19... f5 {[%clk 0:03:26.7]} 20. Qg7 {[%clk 0:03:08.3]} 20... Bxe4 {[%clk
0:03:15.9]} 21. Rh2 {[%clk 0:03:02.4]} 21... d5 {[%clk 0:03:09.3]} 22. Qxh7
{[%clk 0:02:57.3]} 22... d4 {[%clk 0:03:01.3]} 23. Rhd2 {[%clk 0:02:44.6]} 23...
Bf6 {[%clk 0:02:45.5]} 24. Qxc7+ {[%clk 0:02:40.4]} 24... Kxc7 {[%clk
0:02:44.4]} 25. Rg1 {[%clk 0:02:34.1]} 25... Kd6 {[%clk 0:02:26.1]} 26. b3
{[%clk 0:02:25.6]} 26... Ke6 {[%clk 0:02:23.5]} 27. Kc1 {[%clk 0:02:09.8]} 27...
Rh8 {[%clk 0:02:19.8]} 28. Rh2 {[%clk 0:02:05.6]} 28... Be7 {[%clk 0:02:07.9]}
29. Kd2 {[%clk 0:02:01.6]} 29... Bd6 {[%clk 0:02:06]} 30. Rg6+ {[%clk
0:01:53.6]} 30... Kd5 {[%clk 0:02:04.2]} 31. c4+ {[%clk 0:01:44.9]} 31... dxc3+
{[%clk 0:02:02.7]} 32. Kxc3 {[%clk 0:01:44]} 32... Bxf4 {[%clk 0:02:02.1]} 33.
Rf2 {[%clk 0:01:37.6]} 33... Rxh3+ {[%clk 0:01:59.7]} 34. Kb4 {[%clk 0:01:35.8]}
34... Bd6+ {[%clk 0:01:58.1]} 35. Ka5 {[%clk 0:01:32.3]} 35... f4 {[%clk
0:01:54.9]} 36. Rg5+ {[%clk 0:01:09.5]} 36... Be5 {[%clk 0:01:51.5]} 37. Rxf4
{[%clk 0:01:04]} 37... Rh2 {[%clk 0:01:34.7]} 38. Rf8 {[%clk 0:00:59]} 38...
Rxa2+ {[%clk 0:01:31.7]} 39. Kb6 {[%clk 0:00:57.8]} 39... Kd4 {[%clk 0:01:23.5]}
40. Re8 {[%clk 0:00:45.6]} 40... Bf4 {[%clk 0:01:10.4]} 41. Rd8+ {[%clk
0:00:41.8]} 41... Ke3 {[%clk 0:01:06.4]} 42. Rg7 {[%clk 0:00:34.2]} 42... Kf3
{[%clk 0:01:03.2]} 43. Rf7 {[%clk 0:00:28.7]} 43... Ke3 {[%clk 0:00:44.4]} 44.
Re8 {[%clk 0:00:25.6]} 44... Rb2 {[%clk 0:00:41.8]} 45. Rfe7 {[%clk 0:00:20.4]}
45... Rxb3+ {[%clk 0:00:41]} 46. Ka5 {[%clk 0:00:19.3]} 46... Rb5+ {[%clk
0:00:30.1]} 47. Ka4 {[%clk 0:00:18.2]} 47... Bd6 {[%clk 0:00:18.9]} 48. Rxe4+
{[%clk 0:00:16.7]} 48... Kd3 {[%clk 0:00:18]} 49. Rh4 {[%clk 0:00:13.7]} 49...
Re5 {[%clk 0:00:12.6]} 50. Rxe5 {[%clk 0:00:12.1]} 50... Bxe5 {[%clk 0:00:12.5]}
51. Rh5 {[%clk 0:00:11.3]} 51... Bd4 {[%clk 0:00:11.4]} 52. Ka5 {[%clk
0:00:10.4]} 52... Kc4 {[%clk 0:00:09.5]} 53. Ka4 {[%clk 0:00:08.5]} 53... b5+
{[%clk 0:00:08]} 54. Ka5 {[%clk 0:00:07.4]} 54... b4 {[%clk 0:00:07.6]} 55. Kxa6
{[%clk 0:00:06.4]} 55... b3 {[%clk 0:00:07.1]} 56. Rh2 {[%clk 0:00:05.6]} 56...
Bc3 {[%clk 0:00:04.8]} 57. Rh3 {[%clk 0:00:04.4]} 57... b2 {[%clk 0:00:03.5]}
58. Rh1 {[%clk 0:00:03.9]} 58... Bd2 {[%clk 0:00:01.2]} 59. Rb1 {[%clk
0:00:03.5]} 59... Kb3 {[%clk 0:00:00.6]} 60. Rxb2+ {[%clk 0:00:03.1]} 60... Kxb2
{[%clk 0:00:00.5]} 1/2-1/2

[Event "Live Chess"]
[Site "Chess.com"]
[Date "2024.06.01"]
[Round "-"]
[White "Ksenia_2013"]
[Black "Nazar-Makarchuk"]
[Result "1/2-1/2"]
[WhiteElo "842"]
[BlackElo "1481"]
[TimeControl "300"]
[EndTime "12:50:43 PDT"]
[Termination "Game drawn by stalemate"]

1. e4 {[%clk 0:04:58]} 1... d5 {[%clk 0:04:59.4]} 2. exd5 {[%clk 0:04:53.1]}
2... Qxd5 {[%clk 0:04:58.1]} 3. Nc3 {[%clk 0:04:51.3]} 3... Qd8 {[%clk 0:04:57]}
4. Nf3 {[%clk 0:04:49.3]} 4... Nf6 {[%clk 0:04:56.6]} 5. Bc4 {[%clk 0:04:48.1]}
5... e6 {[%clk 0:04:55.2]} 6. O-O {[%clk 0:04:45.8]} 6... Bb4 {[%clk 0:04:54.6]}
7. a3 {[%clk 0:04:40.7]} 7... Bxc3 {[%clk 0:04:53.5]} 8. dxc3 {[%clk 0:04:38.6]}
8... Qxd1 {[%clk 0:04:52.8]} 9. Rxd1 {[%clk 0:04:35.6]} 9... O-O {[%clk
0:04:52.3]} 10. Rd3 {[%clk 0:04:27.5]} 10... Nc6 {[%clk 0:04:51.2]} 11. Ng5
{[%clk 0:04:24.6]} 11... e5 {[%clk 0:04:49.3]} 12. Rg3 {[%clk 0:04:22.8]} 12...
h6 {[%clk 0:04:44]} 13. Nxf7 {[%clk 0:04:19]} 13... Rxf7 {[%clk 0:04:41.7]} 14.
Bxf7+ {[%clk 0:04:16.1]} 14... Kxf7 {[%clk 0:04:40.9]} 15. f4 {[%clk 0:04:04.4]}
15... exf4 {[%clk 0:04:39]} 16. Bxf4 {[%clk 0:04:02.9]} 16... Nh5 {[%clk
0:04:37.1]} 17. Rf3 {[%clk 0:03:59.5]} 17... Nxf4 {[%clk 0:04:35.9]} 18. Rxf4+
{[%clk 0:03:58.1]} 18... Kg6 {[%clk 0:04:35.5]} 19. Raf1 {[%clk 0:03:56.1]}
19... Be6 {[%clk 0:04:32.7]} 20. Re4 {[%clk 0:03:52]} 20... Bf5 {[%clk
0:04:30.1]} 21. Ref4 {[%clk 0:03:48.8]} 21... Bxc2 {[%clk 0:04:28.5]} 22. Rg4+
{[%clk 0:03:46.4]} 22... Kh7 {[%clk 0:04:27.4]} 23. Rf7 {[%clk 0:03:42.6]} 23...
Rg8 {[%clk 0:04:24.6]} 24. Kf2 {[%clk 0:03:38.2]} 24... Bg6 {[%clk 0:04:22.4]}
25. Kf3 {[%clk 0:03:36.5]} 25... Bxf7 {[%clk 0:04:19.5]} 26. Kf4 {[%clk
0:03:32.6]} 26... Rf8 {[%clk 0:04:16.5]} 27. Kf5 {[%clk 0:03:30.8]} 27... Re8
{[%clk 0:04:08.3]} 28. Kf4 {[%clk 0:02:58.9]} 28... Be6 {[%clk 0:04:05.7]} 29.
Rg3 {[%clk 0:02:55.3]} 29... Rf8+ {[%clk 0:04:03]} 30. Ke3 {[%clk 0:02:52.8]}
30... Ne7 {[%clk 0:04:00.7]} 31. b4 {[%clk 0:02:48.7]} 31... Nf5+ {[%clk
0:03:59.9]} 32. Kf3 {[%clk 0:02:47]} 32... Nxg3+ {[%clk 0:03:59.3]} 33. Kxg3
{[%clk 0:02:45.8]} 33... Rd8 {[%clk 0:03:58]} 34. c4 {[%clk 0:02:44.4]} 34...
Bxc4 {[%clk 0:03:56.3]} 35. a4 {[%clk 0:02:43.3]} 35... Rd4 {[%clk 0:03:55.3]}
36. b5 {[%clk 0:02:42.3]} 36... Be6 {[%clk 0:03:53.4]} 37. a5 {[%clk 0:02:41.1]}
37... Ra4 {[%clk 0:03:52.1]} 38. b6 {[%clk 0:02:39.6]} 38... Rxa5 {[%clk
0:03:49.1]} 39. bxc7 {[%clk 0:02:38.1]} 39... Rc5 {[%clk 0:03:48.4]} 40. Kf4
{[%clk 0:02:35.2]} 40... Rxc7 {[%clk 0:03:47.6]} 41. Ke5 {[%clk 0:02:34.2]}
41... Bc4 {[%clk 0:03:46.6]} 42. Kd4 {[%clk 0:02:32.9]} 42... a6 {[%clk
0:03:45.9]} 43. Kc3 {[%clk 0:02:31.5]} 43... Bb5+ {[%clk 0:03:45.3]} 44. Kb4
{[%clk 0:02:30.4]} 44... Bc6 {[%clk 0:03:44.7]} 45. Ka5 {[%clk 0:02:28.7]} 45...
Rf7 {[%clk 0:03:44.1]} 46. Kb6 {[%clk 0:02:27.4]} 46... Rf2 {[%clk 0:03:43.2]}
47. Ka5 {[%clk 0:02:23.7]} 47... Rxg2 {[%clk 0:03:42.5]} 48. Kb6 {[%clk
0:02:21.5]} 48... Rxh2 {[%clk 0:03:42.1]} 49. Ka5 {[%clk 0:02:20.5]} 49... g5
{[%clk 0:03:40.4]} 50. Kb6 {[%clk 0:02:20.4]} 50... g4 {[%clk 0:03:39.7]} 51.
Ka5 {[%clk 0:02:09.4]} 51... g3 {[%clk 0:03:39.2]} 52. Kb6 {[%clk 0:02:08.1]}
52... g2 {[%clk 0:03:38.6]} 53. Ka7 {[%clk 0:02:06]} 53... g1=Q+ {[%clk
0:03:37.1]} 54. Kb8 {[%clk 0:02:04.4]} 54... Qg8+ {[%clk 0:03:35.3]} 55. Ka7
{[%clk 0:02:02.4]} 55... Rf2 {[%clk 0:03:32.2]} 56. Kb6 {[%clk 0:02:00.7]} 56...
Qd8+ {[%clk 0:03:30.1]} 57. Ka7 {[%clk 0:01:58.7]} 57... Rf8 {[%clk 0:03:29]}
1/2-1/2

[Event "Live Chess"]
[Site "Chess.com"]
[Date "2024.06.01"]
[Round "-"]
[White "mrsmarple1968"]
[Black "MaximKovalenko83"]
[Result "0-1"]
[WhiteElo "1763"]
[BlackElo "2255"]
[TimeControl "300"]
[EndTime "12:50:57 PDT"]
[Termination "MaximKovalenko83 won on time"]

1. e4 {[%clk 0:04:56.8]} 1... e5 {[%clk 0:04:58.4]} 2. Bc4 {[%clk 0:04:53.9]}
2... Nf6 {[%clk 0:04:56.5]} 3. d3 {[%clk 0:04:51.8]} 3... Nc6 {[%clk 0:04:55.1]}
4. Nf3 {[%clk 0:04:49.7]} 4... Bc5 {[%clk 0:04:53.6]} 5. O-O {[%clk 0:04:47.4]}
5... d6 {[%clk 0:04:52.8]} 6. c3 {[%clk 0:04:26.8]} 6... Bg4 {[%clk 0:04:46]} 7.
Nbd2 {[%clk 0:04:23.5]} 7... O-O {[%clk 0:04:44.2]} 8. Re1 {[%clk 0:04:21.7]}
8... a6 {[%clk 0:04:42]} 9. Bb3 {[%clk 0:04:15.8]} 9... b5 {[%clk 0:04:40.2]}
10. Nf1 {[%clk 0:04:13.1]} 10... Ne7 {[%clk 0:04:33.4]} 11. Ng3 {[%clk
0:04:09.2]} 11... Ng6 {[%clk 0:04:32.1]} 12. h3 {[%clk 0:04:07.6]} 12... Be6
{[%clk 0:04:30.4]} 13. Bc2 {[%clk 0:04:03.9]} 13... Bb6 {[%clk 0:04:22]} 14. d4
{[%clk 0:04:01.6]} 14... exd4 {[%clk 0:04:20.1]} 15. cxd4 {[%clk 0:04:00.2]}
15... d5 {[%clk 0:04:16.7]} 16. e5 {[%clk 0:03:58.2]} 16... Nd7 {[%clk
0:04:09.8]} 17. Bf5 {[%clk 0:03:48.6]} 17... c5 {[%clk 0:04:05.7]} 18. Bxg6
{[%clk 0:03:29.2]} 18... hxg6 {[%clk 0:04:03.9]} 19. dxc5 {[%clk 0:03:27.5]}
19... Nxc5 {[%clk 0:04:03.5]} 20. Nd4 {[%clk 0:03:18.2]} 20... Rc8 {[%clk
0:03:56]} 21. Be3 {[%clk 0:03:15.7]} 21... Re8 {[%clk 0:03:52.3]} 22. Qd2 {[%clk
0:03:04.2]} 22... Na4 {[%clk 0:03:19.3]} 23. Rac1 {[%clk 0:02:45.8]} 23... Ba5
{[%clk 0:03:11]} 24. b4 {[%clk 0:02:38.8]} 24... Bb6 {[%clk 0:03:10]} 25. Nb3
{[%clk 0:02:22.6]} 25... Bxe3 {[%clk 0:02:56.2]} 26. Qxe3 {[%clk 0:02:20]} 26...
Rc4 {[%clk 0:02:54.1]} 27. Qd2 {[%clk 0:02:12]} 27... Qc7 {[%clk 0:02:46.3]} 28.
Nd4 {[%clk 0:01:59.5]} 28... Rc8 {[%clk 0:02:38.3]} 29. Nge2 {[%clk 0:01:36.6]}
29... Nb6 {[%clk 0:02:31.2]} 30. Nxe6 {[%clk 0:01:26.1]} 30... fxe6 {[%clk
0:02:29.8]} 31. Qg5 {[%clk 0:01:19.6]} 31... Qf7 {[%clk 0:02:24.5]} 32. Red1
{[%clk 0:00:55.3]} 32... Nd7 {[%clk 0:02:18.4]} 33. Rxc4 {[%clk 0:00:43.6]}
33... Rxc4 {[%clk 0:02:16.6]} 34. a3 {[%clk 0:00:40]} 34... Re4 {[%clk
0:02:08.7]} 35. Nd4 {[%clk 0:00:19.8]} 35... Rxe5 {[%clk 0:02:04.8]} 36. Qd8+
{[%clk 0:00:16]} 36... Nf8 {[%clk 0:02:01.2]} 37. Nc6 {[%clk 0:00:08.2]} 37...
Re2 {[%clk 0:01:55.8]} 38. Ne7+ {[%clk 0:00:02.1]} 38... Kh7 {[%clk 0:01:53.8]}
39. Qd6 {[%clk 0:00:00.9]} 39... Qxf2+ {[%clk 0:01:50.4]} 0-1

[Event "Live Chess"]
[Site "Chess.com"]
[Date "2024.06.01"]
[Round "-"]
[White "MaksymYurii"]
[Black "WelshTiger"]
[Result "0-1"]
[WhiteElo "933"]
[BlackElo "2543"]
[TimeControl "300"]
[EndTime "12:51:08 PDT"]
[Termination "WelshTiger won by checkmate"]

1. e4 {[%clk 0:04:57.1]} 1... c5 {[%clk 0:04:58.9]} 2. Nf3 {[%clk 0:04:56.3]}
2... d6 {[%clk 0:04:58.4]} 3. Bc4 {[%clk 0:04:55.5]} 3... e6 {[%clk 0:04:57.4]}
4. O-O {[%clk 0:04:52.1]} 4... Nf6 {[%clk 0:04:56.4]} 5. d3 {[%clk 0:04:50.4]}
5... Be7 {[%clk 0:04:56]} 6. Bd2 {[%clk 0:04:46.1]} 6... Nc6 {[%clk 0:04:55.2]}
7. Nc3 {[%clk 0:04:44.7]} 7... a6 {[%clk 0:04:53.9]} 8. a4 {[%clk 0:04:43.9]}
8... O-O {[%clk 0:04:52]} 9. Bf4 {[%clk 0:04:36.1]} 9... Qc7 {[%clk 0:04:29.9]}
10. d4 {[%clk 0:04:25.1]} 10... cxd4 {[%clk 0:04:25.6]} 11. Nxd4 {[%clk
0:04:23.3]} 11... Nxd4 {[%clk 0:04:21.4]} 12. Qxd4 {[%clk 0:04:21.6]} 12... e5
{[%clk 0:04:20.8]} 13. Bxe5 {[%clk 0:04:19.2]} 13... dxe5 {[%clk 0:04:19.8]} 14.
Nd5 {[%clk 0:04:08.7]} 14... Nxd5 {[%clk 0:04:15.9]} 15. Qxd5 {[%clk 0:04:05.9]}
15... Be6 {[%clk 0:04:13.9]} 16. Qd2 {[%clk 0:03:38.6]} 16... Qxc4 {[%clk
0:04:10.9]} 17. b3 {[%clk 0:03:35.4]} 17... Qxe4 {[%clk 0:04:09.7]} 18. Rfe1
{[%clk 0:03:28]} 18... Rad8 {[%clk 0:04:05.9]} 19. Rxe4 {[%clk 0:03:24.4]} 19...
Rxd2 {[%clk 0:04:04.8]} 20. Rxe5 {[%clk 0:03:23.2]} 20... Bf6 {[%clk 0:04:03.7]}
21. Rxe6 {[%clk 0:03:16.8]} 21... fxe6 {[%clk 0:04:00.2]} 22. Rf1 {[%clk
0:03:12.3]} 22... Rxc2 {[%clk 0:03:58.7]} 23. h3 {[%clk 0:03:11]} 23... Rd8
{[%clk 0:03:58]} 24. Re1 {[%clk 0:03:09.4]} 24... Rdd2 {[%clk 0:03:56.1]} 25.
Rxe6 {[%clk 0:03:04.4]} 25... Rxf2 {[%clk 0:03:55.3]} 26. Kh2 {[%clk 0:02:50.7]}
26... Rxg2+ {[%clk 0:03:54]} 27. Kh1 {[%clk 0:02:48.8]} 27... Rh2+ {[%clk
0:03:48.7]} 28. Kg1 {[%clk 0:02:47]} 28... Bd4+ {[%clk 0:03:48.4]} 29. Kf1
{[%clk 0:02:45.2]} 29... Rh1# {[%clk 0:03:48.3]} 0-1

[Event "Live Chess"]
[Site "Chess.com"]
[Date "2024.06.01"]
[Round "-"]
[White "Hacker_2009"]
[Black "OxonChess"]
[Result "1-0"]
[WhiteElo "2228"]
[BlackElo "1802"]
[TimeControl "300"]
[EndTime "12:51:11 PDT"]
[Termination "Hacker_2009 won by resignation"]

1. e4 {[%clk 0:04:57.2]} 1... e5 {[%clk 0:04:58.3]} 2. Nf3 {[%clk 0:04:55.8]}
2... Nc6 {[%clk 0:04:57.5]} 3. Bc4 {[%clk 0:04:55.3]} 3... Nf6 {[%clk
0:04:56.1]} 4. d3 {[%clk 0:04:53.9]} 4... Be7 {[%clk 0:04:54.3]} 5. O-O {[%clk
0:04:51.6]} 5... O-O {[%clk 0:04:53.1]} 6. Nc3 {[%clk 0:04:48.8]} 6... d6 {[%clk
0:04:51.6]} 7. h3 {[%clk 0:04:46.7]} 7... Na5 {[%clk 0:04:50.4]} 8. Bb3 {[%clk
0:04:37.9]} 8... Nxb3 {[%clk 0:04:35.5]} 9. axb3 {[%clk 0:04:37.8]} 9... c6
{[%clk 0:04:31.7]} 10. Be3 {[%clk 0:04:36.8]} 10... a6 {[%clk 0:04:29.7]} 11.
Na4 {[%clk 0:04:32.3]} 11... b5 {[%clk 0:04:23.7]} 12. Nb6 {[%clk 0:04:30.8]}
12... Rb8 {[%clk 0:04:18.7]} 13. Nxc8 {[%clk 0:04:28.2]} 13... Qxc8 {[%clk
0:04:17.6]} 14. Qd2 {[%clk 0:04:23.2]} 14... Nd7 {[%clk 0:04:05.5]} 15. d4
{[%clk 0:04:10.4]} 15... Ra8 {[%clk 0:03:46.2]} 16. dxe5 {[%clk 0:04:05.5]}
16... dxe5 {[%clk 0:03:40.3]} 17. Rfd1 {[%clk 0:04:03.1]} 17... Rd8 {[%clk
0:03:29.3]} 18. Qc3 {[%clk 0:04:01.2]} 18... f6 {[%clk 0:03:22.6]} 19. Rd2
{[%clk 0:03:42.9]} 19... Nf8 {[%clk 0:03:15.6]} 20. Rxd8 {[%clk 0:03:39.1]}
20... Bxd8 {[%clk 0:03:14.1]} 21. Rd1 {[%clk 0:03:37.6]} 21... Be7 {[%clk
0:03:11.3]} 22. Nh4 {[%clk 0:03:33.3]} 22... g6 {[%clk 0:03:08.3]} 23. Bc5
{[%clk 0:03:14.9]} 23... Qc7 {[%clk 0:02:45.3]} 24. Bxe7 {[%clk 0:03:11.9]}
24... Qxe7 {[%clk 0:02:43.7]} 25. Qxc6 {[%clk 0:03:11.5]} 25... f5 {[%clk
0:02:29.4]} 26. Qxa8 {[%clk 0:03:03]} 26... Qxh4 {[%clk 0:02:25]} 27. Rd8 {[%clk
0:03:00.8]} 27... Qe7 {[%clk 0:02:21.1]} 28. exf5 {[%clk 0:02:59.6]} 28... gxf5
{[%clk 0:02:19.7]} 29. Re8 {[%clk 0:02:58.4]} 29... Qf6 {[%clk 0:02:15.3]} 30.
Qb8 {[%clk 0:02:51.3]} 30... Kg7 {[%clk 0:02:03.4]} 31. Qxe5 {[%clk 0:02:43]}
1-0

[Event "Live Chess"]
[Site "Chess.com"]
[Date "2024.06.01"]
[Round "-"]
[White "Bob2pen"]
[Black "Tushinskiy"]
[Result "0-1"]
[WhiteElo "1885"]
[BlackElo "2245"]
[TimeControl "300"]
[EndTime "12:51:15 PDT"]
[Termination "Tushinskiy won by resignation"]

1. c4 {[%clk 0:04:57.2]} 1... d6 {[%clk 0:04:51.4]} 2. g3 {[%clk 0:04:56.2]}
2... g6 {[%clk 0:04:50.2]} 3. Bg2 {[%clk 0:04:55.4]} 3... Bg7 {[%clk 0:04:50.1]}
4. Nf3 {[%clk 0:04:54.1]} 4... Nf6 {[%clk 0:04:50]} 5. O-O {[%clk 0:04:53.1]}
5... O-O {[%clk 0:04:49.9]} 6. Nc3 {[%clk 0:04:51.9]} 6... c6 {[%clk 0:04:40]}
7. Rb1 {[%clk 0:04:48]} 7... e5 {[%clk 0:04:30.7]} 8. d3 {[%clk 0:04:46.5]} 8...
Bg4 {[%clk 0:04:27.6]} 9. h3 {[%clk 0:04:44.3]} 9... Be6 {[%clk 0:04:07.3]} 10.
b4 {[%clk 0:04:40.4]} 10... Qc8 {[%clk 0:04:02.1]} 11. b5 {[%clk 0:04:38]} 11...
Bxh3 {[%clk 0:03:48.1]} 12. c5 {[%clk 0:04:30.7]} 12... Bxg2 {[%clk 0:03:37.2]}
13. Kxg2 {[%clk 0:04:29.2]} 13... dxc5 {[%clk 0:03:33.8]} 14. Nxe5 {[%clk
0:04:24.1]} 14... Nbd7 {[%clk 0:03:31.6]} 15. Nxd7 {[%clk 0:04:21.9]} 15... Qxd7
{[%clk 0:03:13.2]} 16. Be3 {[%clk 0:04:14.5]} 16... Ng4 {[%clk 0:03:02.2]} 17.
Bxc5 {[%clk 0:04:05]} 17... Bxc3 {[%clk 0:02:59]} 18. Bxf8 {[%clk 0:04:03.9]}
18... Rxf8 {[%clk 0:02:58.7]} 19. e3 {[%clk 0:03:57.5]} 19... Nf6 {[%clk
0:02:51]} 20. d4 {[%clk 0:03:55.7]} 20... Ba5 {[%clk 0:02:48.5]} 21. bxc6 {[%clk
0:03:52.8]} 21... Qxc6+ {[%clk 0:02:46.7]} 22. Qf3 {[%clk 0:03:51.8]} 22...
Qxf3+ {[%clk 0:02:44.2]} 23. Kxf3 {[%clk 0:03:50.5]} 23... b6 {[%clk 0:02:42.9]}
24. Rfc1 {[%clk 0:03:46.3]} 24... Nd5 {[%clk 0:02:40.8]} 25. Rc6 {[%clk
0:03:41.6]} 25... f5 {[%clk 0:02:35.8]} 26. Rd6 {[%clk 0:03:39.6]} 26... Nc3
{[%clk 0:02:33]} 27. Rh1 {[%clk 0:03:18.2]} 27... Rf7 {[%clk 0:02:27.1]} 28. a3
{[%clk 0:03:16.5]} 28... Kg7 {[%clk 0:02:23.6]} 29. Rd8 {[%clk 0:03:07.5]} 29...
Ne4 {[%clk 0:02:14.9]} 30. Rc1 {[%clk 0:02:56.9]} 30... g5 {[%clk 0:02:02.9]}
31. Rcc8 {[%clk 0:02:54.1]} 31... g4+ {[%clk 0:01:56.1]} 32. Kg2 {[%clk
0:02:50.9]} 32... Be1 {[%clk 0:01:53.8]} 33. Rg8+ {[%clk 0:02:45.1]} 33... Kf6
{[%clk 0:01:52.2]} 34. Rc6+ {[%clk 0:02:43.5]} 34... Ke7 {[%clk 0:01:50.9]} 35.
Rgc8 {[%clk 0:02:40.3]} 35... Rf6 {[%clk 0:01:43.1]} 36. R8c7+ {[%clk
0:02:37.4]} 36... Kd8 {[%clk 0:01:41.6]} 37. Rc8+ {[%clk 0:02:36.4]} 37... Kd7
{[%clk 0:01:40]} 38. R8c7+ {[%clk 0:02:35.5]} 38... Ke8 {[%clk 0:01:39.5]} 39.
Rc8+ {[%clk 0:02:34.4]} 39... Kf7 {[%clk 0:01:37.8]} 40. R8c7+ {[%clk
0:02:32.9]} 40... Kg6 {[%clk 0:01:36.5]} 41. Rxf6+ {[%clk 0:02:30.3]} 41... Kxf6
{[%clk 0:01:35.6]} 42. Rxa7 {[%clk 0:02:29.2]} 42... Bxf2 {[%clk 0:01:33.9]} 43.
Rxh7 {[%clk 0:02:26.8]} 43... Bxe3 {[%clk 0:01:32.7]} 44. Rh6+ {[%clk
0:02:24.1]} 44... Bxh6 {[%clk 0:01:31.6]} 0-1